[Event "*** Titled Tuesday Blitz"]
[Site "Chess.com"]
[Date "2021.02.09"]
[Round "4"]
[White "Sibelephant"]
[Black "Angry_Twin"]
[Result "0-1"]
[WhiteElo "3022"]
[BlackElo "2842"]
[TimeControl "180+1"]
[EndTime "10:40:32 PST"]
[Termination "Angry_Twin won by resignation"]

1. e4 {[%clk 0:03:00.3]} 1... c5 {[%clk 0:02:59.9]} 2. Nc3 {[%clk 0:03:00.4]}
2... d6 {[%clk 0:02:58.5]} 3. g3 {[%clk 0:03:00.6]} 3... g6 {[%clk 0:02:58.5]}
4. Bg2 {[%clk 0:03:01.1]} 4... Bg7 {[%clk 0:02:59.2]} 5. d3 {[%clk 0:03:01.7]}
5... Nc6 {[%clk 0:02:59.2]} 6. Be3 {[%clk 0:03:01.8]} 6... Rb8 {[%clk
0:02:59.5]} 7. Qd2 {[%clk 0:03:01.5]} 7... b5 {[%clk 0:03:00]} 8. Nge2 {[%clk
0:03:01.9]} 8... b4 {[%clk 0:03:00.2]} 9. Nd1 {[%clk 0:03:02.3]} 9... a5 {[%clk
0:02:57.1]} 10. O-O {[%clk 0:03:01.5]} 10... a4 {[%clk 0:02:56.4]} 11. a3 {[%clk
0:03:01.7]} 11... b3 {[%clk 0:02:30.5]} 12. c3 {[%clk 0:03:00.6]} 12... Ne5
{[%clk 0:02:30.2]} 13. f3 {[%clk 0:02:49.9]} 13... Ba6 {[%clk 0:02:29.9]} 14.
Nf2 {[%clk 0:02:50]} 14... Nf6 {[%clk 0:02:28.9]} 15. h3 {[%clk 0:02:44.1]}
15... O-O {[%clk 0:02:28.5]} 16. f4 {[%clk 0:02:44.1]} 16... Ned7 {[%clk
0:02:28.8]} 17. Rad1 {[%clk 0:02:19.9]} 17... e6 {[%clk 0:02:01.7]} 18. Rfe1
{[%clk 0:01:56.1]} 18... Qc7 {[%clk 0:01:58]} 19. c4 {[%clk 0:01:47.3]} 19...
Rfe8 {[%clk 0:01:50.9]} 20. Nc3 {[%clk 0:01:47]} 20... Qa5 {[%clk 0:01:46.6]}
21. g4 {[%clk 0:01:37.7]} 21... Rec8 {[%clk 0:01:46.8]} 22. g5 {[%clk
0:01:29.9]} 22... Ne8 {[%clk 0:01:46.7]} 23. Rc1 {[%clk 0:01:26.9]} 23... Nb6
{[%clk 0:01:43.2]} 24. Qe2 {[%clk 0:01:18.8]} 24... Rd8 {[%clk 0:01:38.7]} 25.
Ng4 {[%clk 0:01:16.3]} 25... Bb7 {[%clk 0:01:20.9]} 26. f5 {[%clk 0:01:07.5]}
26... exf5 {[%clk 0:00:51]} 27. exf5 {[%clk 0:01:07.4]} 27... Bxg2 {[%clk
0:00:45.4]} 28. Qxg2 {[%clk 0:01:07.1]} 28... d5 {[%clk 0:00:45.7]} 29. Bf4
{[%clk 0:00:46.8]} 29... Rbc8 {[%clk 0:00:40.3]} 30. f6 {[%clk 0:00:39.6]} 30...
Bf8 {[%clk 0:00:39.6]} 31. Nxd5 {[%clk 0:00:27.6]} 31... Nxd5 {[%clk 0:00:39.6]}
32. cxd5 {[%clk 0:00:28]} 32... c4 {[%clk 0:00:37]} 33. dxc4 {[%clk 0:00:22]}
33... Rxc4 {[%clk 0:00:36.9]} 34. Rxc4 {[%clk 0:00:19.6]} 34... Qxe1+ {[%clk
0:00:36.7]} 35. Qf1 {[%clk 0:00:16.2]} 35... Qa5 {[%clk 0:00:36.4]} 36. Ne3
{[%clk 0:00:08.6]} 36... Nd6 {[%clk 0:00:33.4]} 37. Rc6 {[%clk 0:00:08]} 37...
Ne4 {[%clk 0:00:32.7]} 38. Qe2 {[%clk 0:00:03.5]} 38... Bc5 {[%clk 0:00:32.2]}
39. Kg2 {[%clk 0:00:03.9]} 39... Bxe3 {[%clk 0:00:30.9]} 40. Qxe3 {[%clk
0:00:02.7]} 40... Qxd5 {[%clk 0:00:30.6]} 41. Rc7 {[%clk 0:00:02.4]} 41... Nxg5+
{[%clk 0:00:24.3]} 42. Kg3 {[%clk 0:00:02.7]} 42... Ne6 {[%clk 0:00:17.2]} 43.
Rc3 {[%clk 0:00:02.4]} 43... Nxf4 {[%clk 0:00:10.2]} 44. Qxf4 {[%clk 0:00:03.3]}
44... h5 {[%clk 0:00:10]} 45. Qh6 {[%clk 0:00:01.6]} 45... Qe5+ {[%clk 0:00:09]}
46. Qf4 {[%clk 0:00:02.3]} 46... Qd5 {[%clk 0:00:02.7]} 47. Re3 {[%clk
0:00:01.5]} 47... Kh7 {[%clk 0:00:02.7]} 48. Rf3 {[%clk 0:00:01.7]} 48... Re8
{[%clk 0:00:02.6]} 49. Re3 {[%clk 0:00:02.1]} 49... Rxe3+ {[%clk 0:00:02.6]} 50.
Qxe3 {[%clk 0:00:03]} 50... Qd6+ {[%clk 0:00:03.5]} 51. Qf4 {[%clk 0:00:02.4]}
51... Qxf4+ {[%clk 0:00:03.9]} 52. Kxf4 {[%clk 0:00:03.3]} 52... Kh6 {[%clk
0:00:01.5]} 53. Ke4 {[%clk 0:00:03.7]} 53... g5 {[%clk 0:00:01.7]} 54. Kf5
{[%clk 0:00:03.9]} 54... g4 {[%clk 0:00:02.3]} 55. hxg4 {[%clk 0:00:04.5]} 55...
hxg4 {[%clk 0:00:03.2]} 56. Kxg4 {[%clk 0:00:05.4]} 56... Kg6 {[%clk 0:00:04.1]}
57. Kf4 {[%clk 0:00:06.3]} 57... Kxf6 {[%clk 0:00:05]} 58. Ke4 {[%clk
0:00:07.2]} 58... Kg5 {[%clk 0:00:05.6]} 59. Kd4 {[%clk 0:00:07.5]} 59... f5
{[%clk 0:00:06.5]} 60. Kc4 {[%clk 0:00:08.1]} 60... f4 {[%clk 0:00:07.4]} 61.
Kb4 {[%clk 0:00:08.7]} 61... f3 {[%clk 0:00:08]} 62. Kxa4 {[%clk 0:00:09.6]}
62... f2 {[%clk 0:00:08.9]} 63. Kxb3 {[%clk 0:00:10]} 63... f1=Q {[%clk
0:00:09.8]} 0-1

[Event "*** Titled Tuesday Blitz"]
[Site "Chess.com"]
[Date "2021.02.09"]
[Round "4"]
[White "erdni1993"]
[Black "Ekose"]
[Result "0-1"]
[WhiteElo "2428"]
[BlackElo "2608"]
[TimeControl "180+1"]
[EndTime "10:40:34 PST"]
[Termination "Ekose won by resignation"]

1. d4 {[%clk 0:03:00.9]} 1... Nf6 {[%clk 0:02:57.8]} 2. Nf3 {[%clk 0:03:00.7]}
2... e6 {[%clk 0:02:57.4]} 3. c4 {[%clk 0:03:01.2]} 3... d5 {[%clk 0:02:56.2]}
4. Nc3 {[%clk 0:03:01.6]} 4... Bb4 {[%clk 0:02:54.1]} 5. Qc2 {[%clk 0:02:59.9]}
5... Nbd7 {[%clk 0:02:52.1]} 6. e3 {[%clk 0:02:58.5]} 6... O-O {[%clk
0:02:50.2]} 7. c5 {[%clk 0:02:49.2]} 7... c6 {[%clk 0:02:46.3]} 8. a3 {[%clk
0:02:48.4]} 8... Bxc3+ {[%clk 0:02:45.7]} 9. Qxc3 {[%clk 0:02:49.3]} 9... Re8
{[%clk 0:02:45.9]} 10. b4 {[%clk 0:02:48]} 10... e5 {[%clk 0:02:45.2]} 11. dxe5
{[%clk 0:02:44.2]} 11... Ng4 {[%clk 0:02:42.3]} 12. Bb2 {[%clk 0:02:40.3]} 12...
Ndxe5 {[%clk 0:01:51.1]} 13. Nxe5 {[%clk 0:02:39.1]} 13... Nxe5 {[%clk
0:01:50.3]} 14. f4 {[%clk 0:02:21.9]} 14... Qh4+ {[%clk 0:01:38.2]} 15. g3
{[%clk 0:02:13]} 15... d4 {[%clk 0:01:30.1]} 16. Qxd4 {[%clk 0:01:24.9]} 16...
Nf3+ {[%clk 0:01:27.9]} 17. Kf2 {[%clk 0:01:24.9]} 17... Nxd4 {[%clk 0:01:27.5]}
18. gxh4 {[%clk 0:01:21.7]} 18... Nc2 {[%clk 0:01:25.7]} 19. Rc1 {[%clk
0:01:11.7]} 19... Nxe3 {[%clk 0:01:23.1]} 20. Be2 {[%clk 0:01:04.6]} 20... Nd5
{[%clk 0:01:06.3]} 21. Rhg1 {[%clk 0:00:42.4]} 21... g6 {[%clk 0:01:06.2]} 22.
Be5 {[%clk 0:00:41.6]} 22... Bf5 {[%clk 0:00:56.5]} 23. Bc4 {[%clk 0:00:37]}
23... Rad8 {[%clk 0:00:32.8]} 24. Rgd1 {[%clk 0:00:33.1]} 24... a6 {[%clk
0:00:23.5]} 25. Bxd5 {[%clk 0:00:21.4]} 25... cxd5 {[%clk 0:00:20.2]} 26. Rd4
{[%clk 0:00:21.6]} 26... Be4 {[%clk 0:00:19.2]} 27. a4 {[%clk 0:00:19.6]} 27...
Re6 {[%clk 0:00:19]} 28. b5 {[%clk 0:00:18.8]} 28... axb5 {[%clk 0:00:18.2]} 29.
axb5 {[%clk 0:00:19.7]} 29... Ra8 {[%clk 0:00:17.9]} 30. Rd2 {[%clk 0:00:16.9]}
30... f6 {[%clk 0:00:17.5]} 31. Bd4 {[%clk 0:00:14.2]} 31... Kf7 {[%clk
0:00:14.6]} 32. Rb2 {[%clk 0:00:08.8]} 32... Rc8 {[%clk 0:00:11.5]} 33. Ra2
{[%clk 0:00:07.7]} 33... Bd3 {[%clk 0:00:08.3]} 34. Re1 {[%clk 0:00:04.8]} 34...
Rxe1 {[%clk 0:00:07.5]} 35. Kxe1 {[%clk 0:00:05.7]} 35... Bxb5 {[%clk
0:00:07.8]} 36. Rb2 {[%clk 0:00:06.4]} 36... Bc6 {[%clk 0:00:08.1]} 37. Kf2
{[%clk 0:00:07]} 37... Re8 {[%clk 0:00:09]} 38. Be3 {[%clk 0:00:07.3]} 38... Re4
{[%clk 0:00:08.9]} 39. Rd2 {[%clk 0:00:07.9]} 39... Ke6 {[%clk 0:00:08.7]} 40.
Rd4 {[%clk 0:00:08.4]} 40... Kf5 {[%clk 0:00:08.8]} 41. Rxe4 {[%clk 0:00:07.4]}
41... Kxe4 {[%clk 0:00:09.7]} 42. Bc1 {[%clk 0:00:06.7]} 42... d4 {[%clk
0:00:08.2]} 43. Ke2 {[%clk 0:00:06.8]} 43... f5 {[%clk 0:00:07.6]} 44. Kf2
{[%clk 0:00:07.1]} 44... d3 {[%clk 0:00:07.5]} 45. Be3 {[%clk 0:00:06.9]} 45...
Kd5 {[%clk 0:00:07.2]} 46. Ke1 {[%clk 0:00:07.2]} 46... Ke4 {[%clk 0:00:07.1]}
47. Kd2 {[%clk 0:00:07.7]} 47... Bb5 {[%clk 0:00:06.4]} 48. Bg1 {[%clk
0:00:05.5]} 48... Kxf4 {[%clk 0:00:06.2]} 49. Be3+ {[%clk 0:00:05.7]} 49... Ke4
{[%clk 0:00:06.3]} 50. Bg5 {[%clk 0:00:06.6]} 50... Bc6 {[%clk 0:00:05.9]} 51.
h3 {[%clk 0:00:06.5]} 51... f4 {[%clk 0:00:06]} 52. Bh6 {[%clk 0:00:06.6]} 52...
f3 {[%clk 0:00:06.4]} 53. Be3 {[%clk 0:00:07.1]} 53... h5 {[%clk 0:00:06.6]} 54.
Bf2 {[%clk 0:00:07.3]} 54... Bd5 {[%clk 0:00:06.9]} 55. Be3 {[%clk 0:00:07.7]}
55... Bc6 {[%clk 0:00:07.1]} 56. Bf2 {[%clk 0:00:08.2]} 56... Bb5 {[%clk
0:00:06.4]} 57. Be3 {[%clk 0:00:08.3]} 57... Bc4 {[%clk 0:00:06.4]} 58. Bf2
{[%clk 0:00:08.8]} 58... Kf4 {[%clk 0:00:06.9]} 59. Be3+ {[%clk 0:00:08.2]}
59... Kg3 {[%clk 0:00:07.3]} 60. Bd4 {[%clk 0:00:07.6]} 60... f2 {[%clk
0:00:07.3]} 61. Be5+ {[%clk 0:00:07.7]} 61... Kg2 {[%clk 0:00:07.5]} 62. c6
{[%clk 0:00:08.2]} 62... bxc6 {[%clk 0:00:07.2]} 0-1

[Event "*** Titled Tuesday Blitz"]
[Site "Chess.com"]
[Date "2021.02.09"]
[Round "4"]
[White "esapunov"]
[Black "Zhigalko_Sergei"]
[Result "0-1"]
[WhiteElo "2727"]
[BlackElo "2897"]
[TimeControl "180+1"]
[EndTime "10:40:35 PST"]
[Termination "Zhigalko_Sergei won by resignation"]

1. c4 {[%clk 0:03:00.9]} 1... e5 {[%clk 0:02:57.8]} 2. Nf3 {[%clk 0:03:00.5]}
2... Nc6 {[%clk 0:02:55.9]} 3. Nc3 {[%clk 0:03:00.3]} 3... Nf6 {[%clk 0:02:56]}
4. e3 {[%clk 0:03:00.6]} 4... Bb4 {[%clk 0:02:55.8]} 5. Qc2 {[%clk 0:03:00.9]}
5... d6 {[%clk 0:02:55.8]} 6. Nd5 {[%clk 0:02:58.9]} 6... Ba5 {[%clk 0:02:55.6]}
7. a3 {[%clk 0:02:59.2]} 7... Nxd5 {[%clk 0:02:55]} 8. cxd5 {[%clk 0:02:59]}
8... Ne7 {[%clk 0:02:55.7]} 9. Bc4 {[%clk 0:02:58.2]} 9... O-O {[%clk
0:02:54.4]} 10. b4 {[%clk 0:02:58]} 10... Bb6 {[%clk 0:02:53.9]} 11. Bb2 {[%clk
0:02:58.3]} 11... Bf5 {[%clk 0:02:45.8]} 12. d3 {[%clk 0:02:57.4]} 12... Bg6
{[%clk 0:02:26.4]} 13. O-O {[%clk 0:02:55.7]} 13... Nf5 {[%clk 0:02:16.3]} 14.
Rae1 {[%clk 0:02:43.1]} 14... Nh4 {[%clk 0:02:07.2]} 15. Nxh4 {[%clk 0:02:38.6]}
15... Qxh4 {[%clk 0:02:08.1]} 16. g3 {[%clk 0:02:28.7]} 16... Qh3 {[%clk
0:02:03.5]} 17. f4 {[%clk 0:02:22.2]} 17... exf4 {[%clk 0:01:53.1]} 18. Rxf4
{[%clk 0:02:21.8]} 18... Rfe8 {[%clk 0:01:37.9]} 19. Qf2 {[%clk 0:02:16.4]}
19... a5 {[%clk 0:01:34.6]} 20. b5 {[%clk 0:02:16.1]} 20... Re7 {[%clk
0:01:32.5]} 21. d4 {[%clk 0:02:08.7]} 21... a4 {[%clk 0:01:23.6]} 22. Bc3 {[%clk
0:01:59.5]} 22... Rae8 {[%clk 0:01:22.3]} 23. Bf1 {[%clk 0:01:56.9]} 23... Qd7
{[%clk 0:01:21]} 24. h4 {[%clk 0:01:51]} 24... h5 {[%clk 0:01:05]} 25. Kh2
{[%clk 0:01:47.8]} 25... Be4 {[%clk 0:00:56.4]} 26. Bc4 {[%clk 0:01:40.9]} 26...
Bg6 {[%clk 0:00:50.8]} 27. Bf1 {[%clk 0:01:39.6]} 27... c6 {[%clk 0:00:36.1]}
28. Bh3 {[%clk 0:01:27.6]} 28... Qc7 {[%clk 0:00:34.9]} 29. dxc6 {[%clk
0:01:27.5]} 29... bxc6 {[%clk 0:00:35.8]} 30. bxc6 {[%clk 0:01:26.6]} 30... Qxc6
{[%clk 0:00:36.7]} 31. Bb4 {[%clk 0:01:26.9]} 31... Rc7 {[%clk 0:00:29.4]} 32.
Bf5 {[%clk 0:01:17.4]} 32... Qd5 {[%clk 0:00:25.1]} 33. Bxg6 {[%clk 0:01:13.1]}
33... fxg6 {[%clk 0:00:26]} 34. Re2 {[%clk 0:01:10.8]} 34... Kh7 {[%clk
0:00:24.7]} 35. Qg2 {[%clk 0:00:58.7]} 35... Qe6 {[%clk 0:00:15.3]} 36. Qf3
{[%clk 0:00:52.2]} 36... d5 {[%clk 0:00:14.8]} 37. Kg2 {[%clk 0:00:47.9]} 37...
Rc4 {[%clk 0:00:12.2]} 38. g4 {[%clk 0:00:45.1]} 38... hxg4 {[%clk 0:00:07.1]}
39. Qxg4 {[%clk 0:00:44.7]} 39... Qxg4+ {[%clk 0:00:05.1]} 40. Rxg4 {[%clk
0:00:45.1]} 40... Bxd4 {[%clk 0:00:04.1]} 41. Rd2 {[%clk 0:00:41.4]} 41... Bxe3
{[%clk 0:00:03.3]} 42. Rxc4 {[%clk 0:00:40.3]} 42... dxc4 {[%clk 0:00:04.2]} 43.
Rd7 {[%clk 0:00:40.4]} 43... Bh6 {[%clk 0:00:02.6]} 44. Rc7 {[%clk 0:00:39.4]}
44... Re4 {[%clk 0:00:02.4]} 45. Kg3 {[%clk 0:00:39.1]} 45... Bf4+ {[%clk
0:00:02.5]} 46. Kf3 {[%clk 0:00:38.3]} 46... Bxc7 {[%clk 0:00:03.4]} 47. Kxe4
{[%clk 0:00:38.7]} 47... Bd8 {[%clk 0:00:04.3]} 48. Kd5 {[%clk 0:00:38.1]} 48...
Bxh4 {[%clk 0:00:03.9]} 49. Kxc4 {[%clk 0:00:38.8]} 49... g5 {[%clk 0:00:04]}
50. Kb5 {[%clk 0:00:39.3]} 50... g4 {[%clk 0:00:04.3]} 51. Bc5 {[%clk
0:00:39.2]} 51... Kg6 {[%clk 0:00:03.6]} 52. Kxa4 {[%clk 0:00:39.4]} 52... Kf7
{[%clk 0:00:03.3]} 53. Kb5 {[%clk 0:00:39.8]} 53... Be7 {[%clk 0:00:03.9]} 54.
Bg1 {[%clk 0:00:37.7]} 54... Bxa3 {[%clk 0:00:03.6]} 55. Kc4 {[%clk 0:00:37.9]}
55... Ke6 {[%clk 0:00:04]} 56. Kd3 {[%clk 0:00:36.8]} 56... Kf5 {[%clk
0:00:04.6]} 57. Ke2 {[%clk 0:00:36.7]} 57... Ke4 {[%clk 0:00:05.3]} 58. Bb6
{[%clk 0:00:36.1]} 58... Bb2 {[%clk 0:00:04.5]} 59. Bc7 {[%clk 0:00:35.9]} 59...
Bd4 {[%clk 0:00:04.4]} 60. Bb8 {[%clk 0:00:34.8]} 60... Be5 {[%clk 0:00:04.5]}
61. Ba7 {[%clk 0:00:34.9]} 61... g3 {[%clk 0:00:04.7]} 62. Bb6 {[%clk
0:00:34.7]} 62... Bf6 {[%clk 0:00:02.7]} 63. Ba7 {[%clk 0:00:34.1]} 63... Kf4
{[%clk 0:00:02]} 64. Bb6 {[%clk 0:00:32]} 64... Kg4 {[%clk 0:00:01.5]} 65. Kf1
{[%clk 0:00:31.1]} 65... Kf3 {[%clk 0:00:01.5]} 66. Kg1 {[%clk 0:00:30.3]} 66...
Bg5 {[%clk 0:00:02]} 67. Bc5 {[%clk 0:00:29.8]} 67... Be3+ {[%clk 0:00:02.3]}
68. Bxe3 {[%clk 0:00:30]} 68... Kxe3 {[%clk 0:00:03.2]} 69. Kg2 {[%clk
0:00:30.9]} 69... Kf4 {[%clk 0:00:03.8]} 0-1

[Event "*** Titled Tuesday Blitz"]
[Site "Chess.com"]
[Date "2021.02.09"]
[Round "4"]
[White "PavelChernomordik"]
[Black "Artem_Sadovsky"]
[Result "1/2-1/2"]
[WhiteElo "2385"]
[BlackElo "2534"]
[TimeControl "180+1"]
[EndTime "10:40:36 PST"]
[Termination "Game drawn by stalemate"]

1. e4 {[%clk 0:03:00.9]} 1... g6 {[%clk 0:02:59.4]} 2. h4 {[%clk 0:02:58.8]}
2... h5 {[%clk 0:02:58.3]} 3. Nh3 {[%clk 0:02:58]} 3... d5 {[%clk 0:02:57]} 4.
exd5 {[%clk 0:02:57.1]} 4... Bg4 {[%clk 0:02:39]} 5. Be2 {[%clk 0:02:52.4]} 5...
Nf6 {[%clk 0:02:23.7]} 6. Nc3 {[%clk 0:02:43.5]} 6... Nbd7 {[%clk 0:02:12.8]} 7.
d4 {[%clk 0:02:38.2]} 7... Nb6 {[%clk 0:02:10]} 8. Nf4 {[%clk 0:02:35.4]} 8...
Bh6 {[%clk 0:02:05.7]} 9. f3 {[%clk 0:02:25.7]} 9... Bf5 {[%clk 0:01:58.9]} 10.
g4 {[%clk 0:02:16.2]} 10... hxg4 {[%clk 0:01:40.2]} 11. fxg4 {[%clk 0:02:15.3]}
11... Bxf4 {[%clk 0:01:40.9]} 12. Bxf4 {[%clk 0:02:07.3]} 12... Nbxd5 {[%clk
0:01:31.3]} 13. Bg3 {[%clk 0:01:46.5]} 13... Nxc3 {[%clk 0:01:26.9]} 14. bxc3
{[%clk 0:01:45.5]} 14... Qd5 {[%clk 0:01:24.5]} 15. O-O {[%clk 0:01:35.2]} 15...
Ne4 {[%clk 0:01:12.1]} 16. Qe1 {[%clk 0:01:30.2]} 16... Nxg3 {[%clk 0:00:47.1]}
17. Qxg3 {[%clk 0:01:28.8]} 17... O-O-O {[%clk 0:00:46.5]} 18. gxf5 {[%clk
0:01:20.4]} 18... gxf5 {[%clk 0:00:47.4]} 19. Bf3 {[%clk 0:01:07.3]} 19... Qc4
{[%clk 0:00:41.6]} 20. Bg2 {[%clk 0:01:04.5]} 20... Rdg8 {[%clk 0:00:38.1]} 21.
Qf3 {[%clk 0:01:04]} 21... c6 {[%clk 0:00:30.5]} 22. Qxf5+ {[%clk 0:01:02.8]}
22... Kb8 {[%clk 0:00:30.8]} 23. Qf4+ {[%clk 0:01:00.9]} 23... Ka8 {[%clk
0:00:30.4]} 24. Rf2 {[%clk 0:00:59.8]} 24... Qxc3 {[%clk 0:00:24.9]} 25. Rb1
{[%clk 0:00:52.5]} 25... Qh3 {[%clk 0:00:25.4]} 26. Qc7 {[%clk 0:00:39]} 26...
Rxg2+ {[%clk 0:00:19.6]} 27. Rxg2 {[%clk 0:00:38.5]} 27... Qe3+ {[%clk
0:00:20.2]} 28. Kf1 {[%clk 0:00:36.9]} 28... Qf3+ {[%clk 0:00:16.2]} 29. Ke1
{[%clk 0:00:36.4]} 29... c5 {[%clk 0:00:15.2]} 30. Qg3 {[%clk 0:00:29.8]} 30...
Qe4+ {[%clk 0:00:14.1]} 31. Kd1 {[%clk 0:00:29]} 31... Rd8 {[%clk 0:00:11.7]}
32. Rd2 {[%clk 0:00:26.9]} 32... cxd4 {[%clk 0:00:06.1]} 33. Qg2 {[%clk
0:00:23.6]} 33... Qxg2 {[%clk 0:00:02.5]} 34. Rxg2 {[%clk 0:00:22.9]} 34... Kb8
{[%clk 0:00:01.9]} 35. Rg7 {[%clk 0:00:21.1]} 35... Rf8 {[%clk 0:00:01.4]} 36.
Kd2 {[%clk 0:00:20.2]} 36... Kc7 {[%clk 0:00:01.5]} 37. Kd3 {[%clk 0:00:19.7]}
37... e5 {[%clk 0:00:01.3]} 38. Ke4 {[%clk 0:00:19.4]} 38... Kd6 {[%clk
0:00:01.5]} 39. Rxb7 {[%clk 0:00:18]} 39... f5+ {[%clk 0:00:02.4]} 40. Kf3
{[%clk 0:00:17.6]} 40... Kd5 {[%clk 0:00:02.9]} 41. Rgd7+ {[%clk 0:00:15.4]}
41... Kc4 {[%clk 0:00:03.5]} 42. Rdc7+ {[%clk 0:00:14.7]} 42... Kd5 {[%clk
0:00:03.8]} 43. Rf7 {[%clk 0:00:14.6]} 43... Rc8 {[%clk 0:00:02.6]} 44. Rxf5
{[%clk 0:00:13.2]} 44... Rc3+ {[%clk 0:00:03.1]} 45. Kg4 {[%clk 0:00:10.2]}
45... Rxc2 {[%clk 0:00:04]} 46. Re7 {[%clk 0:00:09.3]} 46... Rg2+ {[%clk
0:00:03.4]} 47. Kf3 {[%clk 0:00:08.6]} 47... Rd2 {[%clk 0:00:02.3]} 48. Rexe5+
{[%clk 0:00:08]} 48... Kc4 {[%clk 0:00:03.2]} 49. Rc5+ {[%clk 0:00:07.1]} 49...
Kd3 {[%clk 0:00:03.7]} 50. h5 {[%clk 0:00:06.7]} 50... Rxa2 {[%clk 0:00:03.9]}
51. h6 {[%clk 0:00:06.3]} 51... Ra1 {[%clk 0:00:02.4]} 52. h7 {[%clk 0:00:05.7]}
52... Rh1 {[%clk 0:00:03]} 53. Rh5 {[%clk 0:00:05.2]} 53... Rf1+ {[%clk
0:00:03.7]} 54. Kg2 {[%clk 0:00:04.9]} 54... Rf8 {[%clk 0:00:04.6]} 55. h8=Q
{[%clk 0:00:04.8]} 55... Rxh8 {[%clk 0:00:05.5]} 56. Rxh8 {[%clk 0:00:05]} 56...
Kd2 {[%clk 0:00:06.3]} 57. Rh7 {[%clk 0:00:05.3]} 57... d3 {[%clk 0:00:07.2]}
58. Rxa7 {[%clk 0:00:05]} 58... Kd1 {[%clk 0:00:08.1]} 59. Rd7 {[%clk
0:00:05.2]} 59... d2 {[%clk 0:00:09]} 60. Rcd5 {[%clk 0:00:05.7]} 60... Ke1
{[%clk 0:00:09.7]} 61. Rxd2 {[%clk 0:00:06]} 1/2-1/2

[Event "*** Titled Tuesday Blitz"]
[Site "Chess.com"]
[Date "2021.02.09"]
[Round "4"]
[White "tylityli"]
[Black "Euwe1234"]
[Result "1/2-1/2"]
[WhiteElo "2281"]
[BlackElo "2450"]
[TimeControl "180+1"]
[EndTime "10:40:36 PST"]
[Termination "Game drawn by stalemate"]

1. d4 {[%clk 0:03:00.9]} 1... d5 {[%clk 0:02:59.9]} 2. c4 {[%clk 0:03:00.8]}
2... e6 {[%clk 0:02:59.8]} 3. Nc3 {[%clk 0:03:00.5]} 3... Nf6 {[%clk 0:03:00.1]}
4. cxd5 {[%clk 0:02:59.9]} 4... exd5 {[%clk 0:03:00.1]} 5. Bg5 {[%clk 0:03:00]}
5... Be7 {[%clk 0:02:59.3]} 6. e3 {[%clk 0:03:00.2]} 6... c6 {[%clk 0:02:59.4]}
7. Bd3 {[%clk 0:03:00.3]} 7... O-O {[%clk 0:02:58.8]} 8. Nge2 {[%clk 0:03:00.4]}
8... Nbd7 {[%clk 0:02:56.4]} 9. O-O {[%clk 0:02:59.6]} 9... Re8 {[%clk
0:02:56.8]} 10. Qc2 {[%clk 0:02:58.6]} 10... Nf8 {[%clk 0:02:55.7]} 11. f3
{[%clk 0:02:58]} 11... Nh5 {[%clk 0:02:43.3]} 12. Bxe7 {[%clk 0:02:50.5]} 12...
Qxe7 {[%clk 0:02:44.2]} 13. e4 {[%clk 0:02:50.3]} 13... dxe4 {[%clk 0:02:44.2]}
14. fxe4 {[%clk 0:02:48.9]} 14... Be6 {[%clk 0:02:32.5]} 15. e5 {[%clk
0:02:42.9]} 15... Rad8 {[%clk 0:02:29.1]} 16. Qd2 {[%clk 0:02:19.5]} 16... f6
{[%clk 0:02:19.4]} 17. exf6 {[%clk 0:01:57.9]} 17... Nxf6 {[%clk 0:02:20.3]} 18.
Qg5 {[%clk 0:01:49.6]} 18... Nd5 {[%clk 0:02:15.3]} 19. Qg3 {[%clk 0:01:41.2]}
19... Nxc3 {[%clk 0:02:05.8]} 20. bxc3 {[%clk 0:01:40.1]} 20... Bd5 {[%clk
0:02:01.6]} 21. Nf4 {[%clk 0:01:36.4]} 21... Qe3+ {[%clk 0:02:00.8]} 22. Qxe3
{[%clk 0:01:32.3]} 22... Rxe3 {[%clk 0:02:01.7]} 23. Rae1 {[%clk 0:01:17.6]}
23... Rde8 {[%clk 0:01:59.3]} 24. Rxe3 {[%clk 0:01:16.2]} 24... Rxe3 {[%clk
0:02:00.2]} 25. Kf2 {[%clk 0:01:16.3]} 25... Re7 {[%clk 0:01:56.9]} 26. a4
{[%clk 0:01:15.4]} 26... Ne6 {[%clk 0:01:51.1]} 27. Nxe6 {[%clk 0:01:10]} 27...
Rxe6 {[%clk 0:01:49.6]} 28. g3 {[%clk 0:01:01.2]} 28... Kf8 {[%clk 0:01:42.8]}
29. a5 {[%clk 0:00:58.1]} 29... h6 {[%clk 0:01:39.8]} 30. c4 {[%clk 0:00:48.5]}
30... Rf6+ {[%clk 0:01:38.6]} 31. Ke2 {[%clk 0:00:47.4]} 31... Rxf1 {[%clk
0:01:38.3]} 32. Kxf1 {[%clk 0:00:47.8]} 32... Bf7 {[%clk 0:01:34.1]} 33. Kf2
{[%clk 0:00:47.1]} 33... Ke7 {[%clk 0:01:33.7]} 34. Ke3 {[%clk 0:00:47.2]} 34...
b6 {[%clk 0:01:32.9]} 35. axb6 {[%clk 0:00:46]} 35... axb6 {[%clk 0:01:33.8]}
36. Kf4 {[%clk 0:00:41.8]} 36... Kf6 {[%clk 0:01:31.1]} 37. Be4 {[%clk
0:00:34.2]} 37... c5 {[%clk 0:01:30]} 38. d5 {[%clk 0:00:30.8]} 38... g5+ {[%clk
0:01:29]} 39. Ke3 {[%clk 0:00:28.3]} 39... Ke5 {[%clk 0:01:29.9]} 40. h4 {[%clk
0:00:22.6]} 40... gxh4 {[%clk 0:01:17.9]} 41. gxh4 {[%clk 0:00:23.5]} 41... Be8
{[%clk 0:01:15.6]} 42. Bd3 {[%clk 0:00:20.7]} 42... Bh5 {[%clk 0:01:10.7]} 43.
Bf1 {[%clk 0:00:20.1]} 43... Bg4 {[%clk 0:01:05.6]} 44. Bd3 {[%clk 0:00:19.7]}
44... Bh3 {[%clk 0:01:02.2]} 45. Be2 {[%clk 0:00:19.2]} 45... Bg2 {[%clk
0:00:49.9]} 46. Bd3 {[%clk 0:00:18.5]} 46... b5 {[%clk 0:00:31.3]} 47. cxb5
{[%clk 0:00:16.4]} 47... Bxd5 {[%clk 0:00:31.2]} 48. Be2 {[%clk 0:00:11.1]}
48... Kd6 {[%clk 0:00:28.4]} 49. Kf4 {[%clk 0:00:08.8]} 49... c4 {[%clk
0:00:27.2]} 50. Ke3 {[%clk 0:00:06.4]} 50... Kc5 {[%clk 0:00:26.7]} 51. b6
{[%clk 0:00:06.4]} 51... Bb7 {[%clk 0:00:19.9]} 52. Bf1 {[%clk 0:00:05]} 52...
Ba6 {[%clk 0:00:19.8]} 53. Be2 {[%clk 0:00:03.9]} 53... Kxb6 {[%clk 0:00:19.9]}
54. Kd4 {[%clk 0:00:04.2]} 54... c3 {[%clk 0:00:20.2]} 55. Bd1 {[%clk 0:00:02]}
55... Kc6 {[%clk 0:00:16.6]} 56. Kxc3 {[%clk 0:00:01.9]} 56... Kd5 {[%clk
0:00:17.1]} 57. Kd2 {[%clk 0:00:02.2]} 57... Ke5 {[%clk 0:00:17.6]} 58. Ke1
{[%clk 0:00:03.1]} 58... Kf4 {[%clk 0:00:17.9]} 59. Kf2 {[%clk 0:00:04]} 59...
Bb7 {[%clk 0:00:17.9]} 60. Kg1 {[%clk 0:00:04.9]} 60... Kg3 {[%clk 0:00:15.5]}
61. h5 {[%clk 0:00:03.2]} 61... Bf3 {[%clk 0:00:15.7]} 62. Bxf3 {[%clk
0:00:01.7]} 62... Kxf3 {[%clk 0:00:16.6]} 63. Kh2 {[%clk 0:00:02.3]} 63... Kg4
{[%clk 0:00:17.5]} 64. Kh1 {[%clk 0:00:03.2]} 64... Kxh5 {[%clk 0:00:18.4]} 65.
Kh2 {[%clk 0:00:03.8]} 65... Kg5 {[%clk 0:00:19.3]} 66. Kh1 {[%clk 0:00:04.7]}
66... Kh4 {[%clk 0:00:20.1]} 67. Kh2 {[%clk 0:00:05.6]} 67... Kg4 {[%clk
0:00:20.1]} 68. Kh1 {[%clk 0:00:06.5]} 68... Kg3 {[%clk 0:00:21]} 69. Kg1 {[%clk
0:00:07.4]} 69... Kh3 {[%clk 0:00:21.9]} 70. Kh1 {[%clk 0:00:08.3]} 70... h5
{[%clk 0:00:22.8]} 71. Kg1 {[%clk 0:00:09.2]} 71... h4 {[%clk 0:00:23.7]} 72.
Kh1 {[%clk 0:00:10.1]} 72... Kg3 {[%clk 0:00:24.4]} 73. Kg1 {[%clk 0:00:11]}
73... h3 {[%clk 0:00:24.8]} 74. Kh1 {[%clk 0:00:11.9]} 74... Kf3 {[%clk
0:00:25.2]} 75. Kg1 {[%clk 0:00:12.8]} 75... Kg4 {[%clk 0:00:26.1]} 76. Kh1
{[%clk 0:00:13.7]} 76... Kg3 {[%clk 0:00:27]} 77. Kg1 {[%clk 0:00:14.6]} 77...
h2+ {[%clk 0:00:27.9]} 78. Kh1 {[%clk 0:00:15.5]} 78... Kh3 {[%clk 0:00:28.6]}
1/2-1/2